Cogmind - Beta 14 @@@ ROGUE MODE // 2024.10.20 @ 20:38:57 Player: N.W.L Result: Destroyed by G-47 Trooper with Particle Gun Performance ------------- Evolutions (2) 1000 Regions Visited (7) 1400 Robots Destroyed (105) 525 Value Destroyed (4297) 4297 Prototype IDs (4) 80 Alien Tech Used (0) 0 Bonus (496) 496 TOTAL SCORE: 7798 Bonus ------- High Alert Combat Kills 721 Follower Combat Kills 124 Entered Garrisons 200 Friendly Fire -549 Cogmind --------- Core Integrity 0/550 Matter 97/300 Energy 300/315 System Corruption 8% Temperature Hot (241) Movement Treading (240) Ox1 Location -8/Materials Parts ------- > --- POWER (1) -------- Neutrino Core > --- PROPULSION (3) --- Light Treads Light Treads Light Treads > --- UTILITY (4) ------ Disposable Heat Sink High-capacity Storage Unit Layered Heavy Armor Plating > --- WEAPON (3) ------- Heavy Laser Enhanced Autogun Enhanced Autogun > --- INVENTORY (20) --- Reinforced Deuterium Engine Light Treads Armored Treads Armored Treads Armored Treads Experimental Sensor Array Weapon Cycler Graphene Brace Remote Force Field Dynamic Insulation System Tractor Beam Heavy Particle Cannon Heavy Assault Cannon Enhanced Gauss Cannon Improved Plasma Cutter Great Maul Peak State ------------ > --- POWER ------------ Neutrino Core > --- PROPULSION ------- Light Treads Light Treads Light Treads > --- UTILITY ---------- Advanced Heat Sink High-capacity Storage Unit Weapon Cycler Improved Transmission Jammer > --- WEAPON ----------- Enhanced Autogun Enhanced Autogun Enhanced Autogun > --- INVENTORY -------- Reinforced Deuterium Engine Light Treads Armored Treads Armored Treads Armored Treads Disposable Heat Sink Experimental Sensor Array Layered Heavy Armor Plating Graphene Brace Remote Force Field Dynamic Insulation System Tractor Beam Heavy Laser Heavy Particle Cannon Heavy Assault Cannon Enhanced Gauss Cannon Improved Plasma Cutter Great Maul [Rating: 45] Favorites ----------- Power Improved Ion Engine Engine Improved Ion Engine Power Core Light Nuclear Core Propulsion Light Treads Treads Light Treads Leg Aluminum Leg Wheel Compact Wheel Utility High-capacity Storage Unit Device Advanced Heat Sink Storage High-capacity Storage Unit Processor Advanced Visual Processing Unit Protection Light Armor Plating Weapon Enhanced Autogun Energy Gun Beam Rifle Energy Cannon Heavy Particle Cannon Ballistic Gun Enhanced Autogun Launcher Grenade Launcher Special Weapon Mining Laser Build | -11 -10 -10 -10 -9 -8 -8 -8 ------- Run | Yrd Mat Min Exi Min Mat Gar Mat Slots Evolved 4 | . . . . . 4 . . Power . | . . . . . . . . Propulsion 1 | . . . . . 1 . . Utility 2 | . . . . . 2 . . Weapon 1 | . . . . . 1 . . Parts Attached 103 | . 6 12 1 6 47 27 4 Power 10 | . 1 2 . 1 4 2 . Engine 7 | . 1 2 . 1 2 1 . Core 3 | . . . . . 2 1 . Reactor . | . . . . . . . . Propulsion 23 | . 2 . . . 9 11 1 Treads 22 | . 2 . . . 8 11 1 Leg . | . . . . . . . . Wheel 1 | . . . . . 1 . . Hover . | . . . . . . . . Flight . | . . . . . . . . Utility 35 | . 1 5 1 3 15 8 2 Device 21 | . 1 2 . 3 9 5 1 Storage 3 | . . . 1 . 2 . . Processor 1 | . . . . . 1 . . Hackware . | . . . . . . . . Protection 10 | . . 3 . . 3 3 1 Artifact . | . . . . . . . . Weapon 35 | . 2 5 . 2 19 6 1 Energy Gun 20 | . 1 4 . 1 11 2 1 Energy Cannon 1 | . . . . . . 1 . Ballistic Gun 10 | . . . . . 7 3 . Ballistic Cannon . | . . . . . . . . Launcher 3 | . 1 1 . . 1 . . Special Weapon 1 | . . . . 1 . . . Impact Weapon . | . . . . . . . . Slashing Weapon . | . . . . . . . . Piercing Weapon . | . . . . . . . . Special Melee Weapon . | . . . . . . . . Unidentified Prototypes 4 | . . . . . 4 . . Parts Lost 23 | . . . . . 17 4 2 Power 3 | . . . . . 2 1 . Propulsion 6 | . . . . . 5 1 . Utility 9 | . . . . . 6 2 1 Weapon 5 | . . . . . 4 . 1 Highest Loss Streak 13 | . . . . . 13 2 2 To Critical Strikes . | . . . . . . . . Average Slot Usage (%) 95 | . 97 100 100 100 85 97 97 Engine 8 | . 14 14 14 14 1 6 . Core 2 | . . . . . 6 2 9 Treads 24 | . 26 28 28 28 17 27 27 Device 12 | . 12 8 . 11 15 16 23 Storage 12 | . 14 14 14 14 13 9 9 Protection 5 | . . 5 14 2 2 8 1 Energy Gun 17 | . 23 28 28 25 17 3 1 Ballistic Gun 8 | . . . . . 6 23 25 Peak Build Rating 45 | . 7 11 11 19 41 45 45 Average Rating 23 | . 6 10 11 15 31 34 44 On Entrance 17 | 6 6 7 11 11 19 38 45 Naked Turns . | . . . . . . . . Heaviest Build 72 | 13 16 21 56 58 72 71 66 Greatest Support 62 | 20 40 40 40 40 62 62 60 Greatest Overweight (x) 4 | . 4 . 1 1 4 1 1 Average Overweight (x) . | . . . . 1 1 . 1 Largest Inventory Capacity 20 | . 8 8 20 20 20 20 20 Average Capacity 16 | . 8 8 16 20 18 20 20 Most Carried 20 | . 6 8 12 20 20 20 20 Average Carried 13 | . 4 7 10 16 13 19 19 Final Capacity 20 | 8 8 8 20 20 20 20 20 Final Carried 20 | 6 6 8 12 20 20 20 17 Class Distribution -------------------- 32% | Mutant 29% | Scavenger-Tank 15% | Scavenger-Mutant 10% | Scavenger-Gunner 6% | Gunner Dominant Class ---------------- Mutant | -10/Materials Scavenger-Mutant | -10/Mines Mutant | -10/Exiles Scavenger-Mutant | -9/Mines Scavenger-Gunner | -8/Materials Scavenger-Tank | -8/Garrison Scavenger-Gunner | -8/Materials Resources | -11 -10 -10 -10 -9 -8 -8 -8 ----------- Run | Yrd Mat Min Exi Min Mat Gar Mat Matter Collected 2504 | 200 100 130 20 70 686 1151 147 Remotely 124 | . . . . . . 124 . Salvage Created 3900 | . 246 157 . 141 1815 1199 342 Parts 257 | . 27 5 . 13 108 78 26 Haulers Intercepted 2 | . . . . . 2 . . Recyclers Shooed 4 | . . 1 . 1 2 . . Parts Field Recycled . | . . . . . . . . Retrieved Matter . | . . . . . . . . Parts Self-Destructed . | . . . . . . . . Prevented . | . . . . . . . . Kills | -11 -10 -10 -10 -9 -8 -8 -8 ------- Run | Yrd Mat Min Exi Min Mat Gar Mat Combat Hostiles Destroyed 81 | . 6 4 . 4 29 31 7 Guns 70 | . 3 1 . 4 24 31 7 AOE 8 | . 3 2 . . 3 . . Classes Destroyed 15 | . 6 . . . 7 2 . Worker 6 | . 1 . . 1 4 . . Builder 1 | . . . . . 1 . . Tunneler 1 | . 1 . . . . . . Hauler 2 | . . . . . 2 . . Recycler 4 | . . . . . 4 . . Operator 2 | . 1 . . . . . 1 Watcher 6 | . 2 . . . 4 . . Swarmer 24 | . 3 . . 4 4 13 . Grunt 28 | . 3 4 . . 14 5 2 Brawler 5 | . . . . . 3 2 . Duelist 4 | . . . . . 2 2 . Sentry 13 | . . . . . 5 6 2 Specialist 5 | . . . . . . 3 2 Programmer 1 | . . . . . . 1 . Heavy 2 | . . . . . 1 . 1 Thug 1 | . . . . 1 . . . Best Kill Streak 9 | . 3 3 . 3 9 6 5 Combat Bots Only 9 | . 3 3 . 2 9 6 5 Max Kills in Single Turn 3 | . 3 2 . 1 2 2 1 Gunslinging 1 | . . . . . 1 1 . Exploded 3 | . 3 2 . . 2 . . Melee . | . . . . . . . . Uniques/NPCs Destroyed . | . . . . . . . . Combat | -11 -10 -10 -10 -9 -8 -8 -8 -------- Run | Yrd Mat Min Exi Min Mat Gar Mat Hostile Shots Fired 373 | . 21 19 . 23 178 94 38 Missed 93 | . 4 4 . 5 44 28 8 Damage Taken 4258 | . 197 223 . 148 2165 860 665 Core 642 | . 27 10 . 45 375 83 102 Absorbed by Shields . | . . . . . . . . Regen/Repaired (Parts) 143 | . . . . . 143 . . Core Remaining (%) 83 | 100 . . . 67 . . . Volleys Fired 275 | . 28 20 . 22 100 86 19 Largest 3 | . 2 2 . 2 3 3 3 Hottest 207 | . 90 112 . 112 207 119 119 Shots Fired 639 | . 51 39 . 40 234 218 57 Gun 623 | . 47 38 . 36 229 216 57 Cannon 2 | . . . . . . 2 . Launcher 10 | . 4 1 . . 5 . . Special 4 | . . . . 4 . . . Kinetic 346 | . . . . . 126 171 49 Thermal 243 | . 47 38 . 40 63 47 8 Explosive 10 | . 4 1 . . 5 . . Electromagnetic 40 | . . . . . 40 . . Robot Hit Streak 24 | . 9 7 . 6 24 13 13 Robot Miss Streak 9 | . 2 3 . 2 9 4 1 Penetration Max . | . . . . . . . . Secondary Targets 10 | . . . . . 5 5 . Max Gunslinging Chain 2 | . . . . . 2 2 . Shots Hit Robots 382 | . 28 23 . 20 147 117 47 Core Hits 163 | . 15 8 . 8 70 49 13 Critical Kills 1 | . . . . . . . 1 Critical Parts Destroyed 1 | . . . . . . 1 . Critical Strikes 21 | . 4 4 . 3 6 3 1 Burn 19 | . 4 4 . 3 6 2 . Destroy 2 | . . . . . . 1 1 Melee Attacks . | . . . . . . . . Impact . | . . . . . . . . Slashing . | . . . . . . . . Piercing . | . . . . . . . . Sneak Attacks . | . . . . . . . . Combat Hostiles . | . . . . . . . . Follow-up Attacks . | . . . . . . . . Damage Inflicted 7515 | . 525 418 . 314 3205 2189 864 Guns 6802 | . 342 336 . 314 2757 2189 864 Cannons . | . . . . . . . . Explosions 709 | . 183 82 . . 444 . . Melee . | . . . . . . . . Ramming 4 | . . . . . 4 . . Kinetic 3790 | . . . . . 1273 1788 729 Thermal 2373 | . 342 336 . 314 845 401 135 Explosive 709 | . 183 82 . . 444 . . Electromagnetic 639 | . . . . . 639 . . Impact . | . . . . . . . . Slashing . | . . . . . . . . Piercing . | . . . . . . . . Highest Corruption 8 | . . . . . 1 8 8 Average Corruption 3 | . . . . . 1 3 8 Corruption Purged . | . . . . . . . . Corruption Blocked . | . . . . . . . . Effects 52 | . . . . . 9 38 5 Message Errors 15 | . . . . . 3 9 3 Matter Fused 18 | . . . . . 5 13 . Heat Flow Errors 7 | . . . . . . 5 2 Energy Discharges 2 | . . . . . . 2 . Data Loss (minor) 4 | . . . . . . 4 . Data Loss (major) 2 | . . . . . . 2 . Misfires 2 | . . . . . . 2 . Alerts 1 | . . . . . . 1 . Weapon Failures 1 | . . . . . 1 . . Overload Shots . | . . . . . . . . Overflow Damage . | . . . . . . . . Projectiles . | . . . . . . . . Explosions . | . . . . . . . . Melee . | . . . . . . . . Knockbacks . | . . . . . . . . Impact . | . . . . . . . . Kinetic . | . . . . . . . . Secondary . | . . . . . . . . Self-Inflicted Damage 43 | . 20 23 . . . . . Shots 2 | . 1 1 . . . . . Rammed . | . . . . . . . . Targets Rammed 1 | . . . . . 1 . . Kicked . | . . . . . . . . Crushed 1 | . . . . . 1 . . Highest Temperature 419 | . 258 333 . 404 309 274 419 Average Temperature 94 | . 80 130 . 118 73 65 166 Received Heat Transfer 1587 | . 84 117 . . 972 180 234 Effects 5 | . . 2 . . 1 . 2 Shutdowns 1 | . . . . . . . 1 Energy Bleed 2 | . . 2 . . . . . Interference 1 | . . . . . 1 . . Matter Decay 1 | . . . . . . . 1 Siege Activations . | . . . . . . . . Robots Corrupted 2 | . . . . . 2 . . Combat Hostiles 1 | . . . . . 1 . . Parts Fried 8 | . . . . . 8 . . Impact Corruptions . | . . . . . . . . Robots Melted 2 | . . 1 . . 1 . . Combat Hostiles 2 | . . 1 . . 1 . . Parts Melted 17 | . 6 2 . . 7 2 . Heat Transferred 6578 | . 1151 1135 . 999 2109 925 259 Parts Sabotaged . | . . . . . . . . Parts Stolen . | . . . . . . . . Parts Stripped . | . . . . . . . . Power Chain Reactions . | . . . . . . . . Alert | -11 -10 -10 -10 -9 -8 -8 -8 ------- Run | Yrd Mat Min Exi Min Mat Gar Mat Peak Influence 1774 | . 190 138 . 58 429 1774 1101 Initial 864 | . . . . . 22 278 864 Average 425 | . 62 39 . 17 104 1140 1005 Maximum Alert Level 5 | . . . . . 2 5 4 Low Security (%) 63 | . 100 100 . 100 88 . . Level 1 5 | . . . . . 8 11 . Level 2 5 | . . . . . 2 16 . Level 3 6 | . . . . . . 14 97 Level 4 10 | . . . . . . 32 2 Level 5 8 | . . . . . . 26 . High Security . | . . . . . . . . Max Security . | . . . . . . . . Squads Dispatched 14 | . 2 . . . 4 . 8 Investigation 4 | . 1 . . . 1 . 2 Extermination . | . . . . . . . . Reinforcement 4 | . 1 . . . 1 . 2 Assault . | . . . . . . . . Garrison 6 | . . . . . 2 . 4 Intercept . | . . . . . . . . Searches Triggered . | . . . . . . . . Construction Impeded . | . . . . . . . . Haulers Reinforced . | . . . . . . . . Active Scanning Responses . | . . . . . . . . Cargo Convoy Interrupts . | . . . . . . . . Stealth | -11 -10 -10 -10 -9 -8 -8 -8 --------- Run | Yrd Mat Min Exi Min Mat Gar Mat Distress Signals 3 | . . . . . 3 . . Communications Jammed 1 | . . . . . . . 1 Distress Signals . | . . . . . . . . Times Spotted 116 | . 13 6 . 6 46 32 13 Peak Tracking Total 7 | . 4 3 . 3 7 4 5 Tactical Retreats 9 | . . 1 . . 6 2 . Traps | -11 -10 -10 -10 -9 -8 -8 -8 ------- Run | Yrd Mat Min Exi Min Mat Gar Mat Traps Triggered 4 | . 1 . . . 1 2 . Indirectly . | . . . . . . . . Trap Hack Attempts . | . . . . . . . . Triggered . | . . . . . . . . Disarmed . | . . . . . . . . Reprogrammed . | . . . . . . . . Reused . | . . . . . . . . Traps Extracted . | . . . . . . . . Installed . | . . . . . . . . Triggered . | . . . . . . . . Machines | -11 -10 -10 -10 -9 -8 -8 -8 ---------- Run | Yrd Mat Min Exi Min Mat Gar Mat Machines Disabled 11 | . 1 1 . . . 8 1 Max in Single Turn 2 | . 1 1 . . . 2 . Garrison Relay 4 | . . . . . . 4 . Phase Generator 1 | . . . . . . 1 . Machines Repaired . | . . . . . . . . Machines Dismantled . | . . . . . . . . Machines Sabotaged . | . . . . . . . . Overloaded Fab Kills . | . . . . . . . . Hacking | -11 -10 -10 -10 -9 -8 -8 -8 --------- Run | Yrd Mat Min Exi Min Mat Gar Mat Machines Accessed 19 | . 6 . 1 . 6 4 2 Terminals 14 | . 6 . . . 3 4 1 Fabricators . | . . . . . . . . Repair Stations 1 | . . . . . 1 . . Recycling Units 1 | . . . . . 1 . . Scanalyzers . | . . . . . . . . Garrison Access 2 | . . . . . 1 . 1 Total Hacks 69 | . 26 . 1 . 23 10 9 Successful 34 | . 17 . 1 . 10 4 2 Failed 34 | . 8 . . . 13 6 7 Catastrophic 6 | . 3 . . . . 1 2 Database Lockouts 1 | . 1 . . . . . . Manual 32 | . 17 . 3 . 11 1 . Terminals 55 | . 26 . . . 12 10 7 Fabricators . | . . . . . . . . Repair Stations 6 | . . . . . 6 . . Recycling Units 3 | . . . . . 3 . . Scanalyzers . | . . . . . . . . Garrison Access 4 | . . . . . 2 . 2 Terminal Hacks 15 | . 9 . 1 . . 3 2 Record 1 | . . . 1 . . . . Robot Analysis 4 | . 2 . . . . . 2 Emergency Access Points 2 | . 1 . . . . 1 . Terminal Index 1 | . 1 . . . . . . Unreport Threat 1 | . 1 . . . . . . Locate Traps 2 | . 2 . . . . . . Zone Layout 2 | . 2 . . . . . . Patrol Navigation 1 | . . . . . . 1 . Security Stations 1 | . . . . . . 1 . Fabricator Hacks . | . . . . . . . . Repair Station Hacks 4 | . . . . . 4 . . Scan Component 2 | . . . . . 2 . . Repair 2 | . . . . . 2 . . Recycling Unit Hacks 1 | . . . . . 1 . . Retrieve Components 1 | . . . . . 1 . . Scanalyzer . | . . . . . . . . Garrison Access Hacks 1 | . . . . . 1 . . Unlock Access 1 | . . . . . 1 . . Unauthorized Hacks 13 | . 8 . . . 4 1 . Terminals 12 | . 8 . . . 3 1 . Botnet 2 | . 2 . . . . . . Disrupt 1 | . . . . . 1 . . Operators 1 | . 1 . . . . . . Skim 7 | . 5 . . . 2 . . Override 1 | . . . . . . 1 . Fabricators . | . . . . . . . . Repair Stations 1 | . . . . . 1 . . Patch 1 | . . . . . 1 . . Recycling Units . | . . . . . . . . Scanalyzers . | . . . . . . . . Garrison Access . | . . . . . . . . Data Cores Recovered 2 | . 1 . . . . . 1 Used 1 | . . . . . . . 1 Hacking Detections 16 | . 6 . . . 5 3 2 Full Trace Events 5 | . 1 . . . 1 1 2 Feedback Events 1 | . . . . . 1 . . Corruption 1 | . . . . . 1 . . Feedback Blocked . | . . . . . . . . Robot Schematics Acquired . | . . . . . . . . Robots Built . | . . . . . . . . Authchips . | . . . . . . . . Time . | . . . . . . . . Total Robot Build Rating . | . . . . . . . . Part Schematics Acquired . | . . . . . . . . Parts Built . | . . . . . . . . Authchips . | . . . . . . . . Time . | . . . . . . . . Total Part Build Rating . | . . . . . . . . Parts Repaired 2 | . . . . . 2 . . Time 114 | . . . . . 114 . . Parts Recycled . | . . . . . . . . Recycled Matter . | . . . . . . . . Retrieved Matter . | . . . . . . . . Retrieved Components 9 | . . . . . 9 . . Parts Scanalyzed . | . . . . . . . . Part Schematics Acquired . | . . . . . . . . Parts Damaged . | . . . . . . . . Bothacking | -11 -10 -10 -10 -9 -8 -8 -8 ------------ Run | Yrd Mat Min Exi Min Mat Gar Mat Used RIF Installer . | . . . . . . . . Robots Hacked . | . . . . . . . . Non-combat . | . . . . . . . . Combat . | . . . . . . . . Robot Hacks Applied . | . . . . . . . . Relay Couplers Released 20 | . . . . . . 20 . Machine Destruction 17 | . . . . . . 17 . Programmers 3 | . . . . . . 3 . Fabnet Peak Effective % . | . . . . . . . . Robots Rewired 4 | . . . . . . 4 . Allies Hacked . | . . . . . . . . Hacks Repelled . | . . . . . . . . Allies | -11 -10 -10 -10 -9 -8 -8 -8 -------- Run | Yrd Mat Min Exi Min Mat Gar Mat Total Allies 7 | . . . . 3 . 4 . Largest Group 4 | . . . . 2 1 4 3 Highest-Rated Group 96 | . . . . 36 5 96 72 Highest-Rated Ally 31 | . . . . 31 5 24 24 Total Orders 2 | . . . . . . 2 . STAY 1 | . . . . . . 1 . FOLLOW 1 | . . . . . . 1 . Ally Attacks 31 | . . . . 5 . 5 21 Total Damage 718 | . . . . 62 . 105 551 Kills 6 | . . . . 1 . 2 3 Allies Corrupted . | . . . . . . . . Allies Melted . | . . . . . . . . Intel | -11 -10 -10 -10 -9 -8 -8 -8 ------- Run | Yrd Mat Min Exi Min Mat Gar Mat Robot Analysis Total 4 | . 2 . . . . . 2 Derelict Logs Recovered 3 | . . 2 . 1 . . . Drone Launches . | . . . . . . . . Drone Recoveries . | . . . . . . . . Exploration | -11 -10 -10 -10 -9 -8 -8 -8 ------------- Run | Yrd Mat Min Exi Min Mat Gar Mat Turns Passed 7122 | . 962 609 791 754 1885 1985 136 Spaces Moved 2718 | 1 357 231 375 272 735 711 36 Core 130 | . 13 . . . 117 . . Treads 2314 | . 319 231 375 272 370 711 36 Legs 26 | 1 25 . . . . . . Wheels 248 | . . . . . 248 . . Hover . | . . . . . . . . Flight . | . . . . . . . . Fastest Speed 50 | 120 120 160 160 240 50 155 240 Average Speed 197 | 120 160 160 209 240 170 232 240 Slowest Speed 250 | 120 250 160 240 240 250 240 240 Overloaded Moves . | . . . . . . . . Propulsion Burnouts . | . . . . . . . . Robots Hopped . | . . . . . . . . Cave-ins Triggered . | . . . . . . . . Exploration Rate (%) 47 | 2 61 44 69 68 44 89 4 Regions Visited 7 Branch Regions 3 Pre-discovered Areas 1 | . . . 1 . . . . Known Exits Taken 3 | . . 1 . 1 1 . . Unknown Exits Taken 3 | 1 1 . 1 . . . . Scrap Searched 2 | . . 1 . 1 . . . Spaces Dug 25 | . 22 . . 3 . . . Terrain Destroyed 210 | . 28 8 . 4 25 145 . Melee . | . . . . . . . . Projectile 4 | . . . . 4 . . . AOE 206 | . 28 8 . . 25 145 . Terrain Rammed . | . . . . . . . . Walls Destroyed . | . . . . . . . . Machines Disabled . | . . . . . . . . Actions | -11 -10 -10 -10 -9 -8 -8 -8 --------- Run | Yrd Mat Min Exi Min Mat Gar Mat Total 4082 | . 694 429 380 324 1223 964 68 Wait 813 | . 298 154 . 17 267 70 7 Move 2712 | . 356 230 374 271 735 710 36 Hop . | . . . . . . . . Pick Up 66 | . 4 6 4 7 38 7 . Fast Attach 25 | . 2 3 . . 18 2 . Attach 31 | . 2 . . . 22 5 2 Detach 2 | . . . . . 1 1 . Swap 47 | . 2 9 1 6 7 20 2 Drop 61 | . 2 7 1 1 34 14 2 Fire 275 | . 28 20 . 22 100 86 19 Melee . | . . . . . . . . Ram . | . . . . . . . . Kick . | . . . . . . . . Crush 1 | . . . . . 1 . . Escape Stasis 4 | . . . . . . 4 . Rewire 45 | . . . . . . 45 . Trap . | . . . . . . . . Miscellaneous . | . . . . . . . . Route ------- -11/Scrapyard -10/Materials (discovered 6 exits: *Mat x3 / [*Min x2] / Sub) -10/Mines (discovered 4 exits: Mat x2 / *Exi / Sub) -10/Exiles -9/Mines (discovered 2 exits: *Mat x2) -8/Materials (discovered 4 exits: [*Fac x2] / [*Sto] / Gar) -8/Garrison (discovered 3 exits: *Mat x3) -8/Materials History --------- Turn | Location | Event 1 | -11/Scrapyard | Discovered new exit (range 0) 1 | -11/Scrapyard | Entered Materials 35 | -10/Materials | Central database locked down 48 | -10/Materials | Discovered new exit (range 12) 266 | -10/Materials | Discovered new exit (range 7) 316 | -10/Materials | Build established: Mutant 376 | -10/Materials | Discovered new exit (range 6) 517 | -10/Materials | Loaded intel: 2 recycling unit locations 534 | -10/Materials | Discovered new exit (range 7) 589 | -10/Materials | Loaded intel: 9 trap records 650 | -10/Materials | Identified exit to Materials 775 | -10/Materials | Identified exit to Subcaves 817 | -10/Materials | Learned location of 2 exits from Mines 869 | -10/Materials | Learned Storage emergency access door positions 933 | -10/Materials | Learned 2 Mines zone layouts 963 | -10/Materials | Entered Mines 965 | -10/Mines | Identified exit to Exiles 971 | -10/Mines | Joined a pair of Derelicts in attacking an 0b10 outpost 984 | -10/Mines | Learned Materials security intel 1566 | -10/Mines | Deemed a non-threat by the Exiles lab entrance 1572 | -10/Mines | Entered Exiles 1611 | -10/Exiles | Met 8R-AWN 1640 | -10/Exiles | Met EX-HEX 1681 | -10/Exiles | Met EX-BIN 1742 | -10/Exiles | Met EX-DEC 1755 | -10/Exiles | Learned location of Zion (-6) 2339 | -10/Exiles | Discovered new exit (range 10) 2363 | -10/Exiles | Entered Mines 2364 | -9/Mines | Identified exit to Materials 2366 | -9/Mines | Received a Mining Laser from a helpful Derelict 2651 | -9/Mines | Found a damaged Exp. Sensor Array with a note attached 2656 | -9/Mines | Found Prototype Device 2734 | -9/Mines | Learned Materials stockpile data 2805 | -9/Mines | Build established: Scavenger-Mutant 3117 | -9/Mines | Entered Materials 3117 | -8/Materials | Accompanied by 1 ally 3117 | -8/Materials | Evolved 4 slots: Propulsion x1, Utility x2, Weapon x1 3396 | -8/Materials | Lost 13 parts (1p4n4u4w) 4015 | -8/Materials | Discovered new exit (range 8) 4094 | -8/Materials | Core integrity fell below 50% 4123 | -8/Materials | Found Corrupted Prototype Device 4324 | -8/Materials | Repaired Corrupted Hvy. Assault Cannon 4385 | -8/Materials | Repaired Corrupted Rnf. Deuterium Engine 4420 | -8/Materials | Build established: Gunner 4525 | -8/Materials | Identified Exp. Sensor Array 4552 | -8/Materials | Discovered new exit (range 6) 4656 | -8/Materials | Discovered new exit (range 16) 4837 | -8/Materials | Garrison activated, responded to threat 4896 | -8/Materials | Destroyed 9 combat bots 5002 | -8/Materials | Identified exit to Garrison 5002 | -8/Materials | Entered Garrison 5052 | -8/Garrison | Triggered checkpoint 5084 | -8/Garrison | Identified exit to Materials 5175 | -8/Garrison | Build established: Scavenger-Tank 5223 | -8/Garrison | Phase Generator disabled 5347 | -8/Garrison | Triggered checkpoint 5365 | -8/Garrison | Triggered checkpoint 5391 | -8/Garrison | Triggered checkpoint 5522 | -8/Garrison | Triggered checkpoint 5681 | -8/Garrison | Garrison Relay disabled 5761 | -8/Garrison | Garrison Relay disabled 5884 | -8/Garrison | Triggered checkpoint 5953 | -8/Garrison | Garrison Relay disabled 5984 | -8/Garrison | Triggered checkpoint 6426 | -8/Garrison | Triggered checkpoint 6470 | -8/Garrison | Learned Materials security intel 6481 | -8/Garrison | Garrison Relay disabled 6725 | -8/Garrison | Triggered checkpoint 6726 | -8/Garrison | Core integrity fell below 20% 6987 | -8/Garrison | Entered Materials 6987 | -8/Materials | Accompanied by 3 allies 7117 | -8/Materials | Garrison activated, responded to threat 7123 | -8/Materials | Destroyed by G-47 Trooper with Particle Gun Last Messages --------------- 07088_ /J>4L/IN6LYJCCV4A/UY| ,Q7L8SKD 07091_ Shotgunner 3d Hpw. Shotgun blasted off. 07091_ Shotgunner 3d destroyed. 07097_ Slug penetrates Wall. 07098_ Adv. Heat Sink destroyed. 07100_ H-61 Shepherd destroyed. 07101_ Penetrated by Slug. 07101_ Enh. Autogun destroyed. 07102_ Dropped Imp. Transmission Jammer. 07102_ Shotgunner 3c destroyed. 07104_ X-62 Marksman destroyed. 07106_ G-47 Trooper destroyed. 07108_ X-62 Marksman destroyed. 07117_ CFG ,#%JHP6L4=XPSKM6<, MRHNH B8G4SN 07117_ G-47 Trooper calls for garrison reinforcements. 07117_ ALERT: Activating Garrison Access M001. 07119_ G-47 Trooper destroyed. 07119_ Critical hit (Burn: +37). 07121_ Power failure, Neutrino Core shutdown. 07121_ Overheating: Matter decay (-11). Map ----- +----------------------------------------------------+ | ?????????????????????????????????????????????????? | | ?????????????????????????????????????????????????? | | ?????????????????????????????????????????????????? | | ?????????????????????????????????????????????????? | | ?????????????????????????????????????????????????? | | ?????????????????????????????????????????????????? | | ?????????????????????????????????????????????????? | | ?????????????????????????????????????????????????? | | ?????????????????????????????????????????????????? | | ?????????????????????????????????????????????????? | | ?????????????????????????????????????????????????? | | ?????????????????????????????????????????????????? | | ?????????????????????????????????????????????????? | | ?????????????????????????????????????????????????? | | ?????????????????????????????????????????????????? | | ?????????????????????????????????????????????????? | | ?????????????????????????????????????????????????? | | ?????????????????????????????????????????????????? | | ?????????????????????????????????????????????????? | | ?????????????????????????????????????????????????? | | ?????????????????????????????????????????????????? | | ??????????????????????????????????###????????????? | | ??????????? ####################T########?????? | | ?????????? g =%% % %[ *[[=! = #?????? | | ?????????? % %[ % [=[%=%!* #?????? | | ?????????? %@ !%!g=! #?????? | | ?????????????????#+##################+######?????? | | ????????????????????????????????# #??????? | | ????????????????????????????????# = =!#??????? | | ????????????????????????????????# =*[""%#??????? | | ????????????????????????????????# [*"""!#??????? | | ????????????????????????????????# """%""" #??????? | | ????????????????????????????????# "G[*! #??????? | | ????????????????????????????????# """!! #??????? | | ????????????????????????????????# [= #??????? | | ????????????????????????????????###########??????? | | ?????????????????????????????????????????????????? | | | | | | | | | | | | | | | | | | | | | | | | | | | +----------------------------------------------------+ Best States ------------- Heat Dissipation 59 Coolant Potential 50 Energy Generation 19 Energy Capacity 315 Matter Stores 450 Matter Capacity 450 Sight Range 20 Terrain Scan Density 10 Jamming Range 14 Armor Coverage 600 Weapon Cycling 15 Evasion (%) 55 Recoil Reduction 3 Item Schematics ----------------- None Robot Schematics ------------------ None Fabricated ------------ Nothing Alien Tech Used ----------------- None Achievements -------------- None Challenges ------------ None Game ------ Seed NullRiotRipteeth Manual? 0 Play Time 00:44:06 Cumulative 341.2 hours Start 2024.10.20 @ 19:03:34 End 2024.10.20 @ 20:38:57 Sessions 3 Manual Loads 0 Difficulty Rogue Special Mode None Game No. 171 Rogue 171 Adventurer 0 Explorer 0 Win Type - Total 9 Types 5/1/3/0/0/0/0/0/0 Lore% 85 Gallery% 88 Achievement% 73 Wizard Run 0 Options --------- Layout 0 ASCII 0 Keyboard 0 Movement Mouse Keybinds 0 Fullscreen 2 Font 12/Smallcaps Map View 83x54 Zoom Use 0% Tactical HUD 1 Map Filters NONE Filters NONE Steam 1 RUN: e4d97eb9-51b2-4807-ad75-4f3e73149816